[Event "Chinese League Div-A Rapid 2022"]
[Site "Fuling,Chongqing"]
[Date "2022.09.08"]
[Round "3.18"]
[White "Huang, Renjie"]
[Black "Wang, Hao B"]
[Result "1-0"]
[ECO "B90"]
[WhiteElo "2446"]
[BlackElo "2165"]
[Annotator "TA"]
[PlyCount "145"]
[EventDate "2022.09.07"]
[EventType "team-tourn"]
[EventCountry "CHN"]
[SourceTitle "playchess.com"]
[Source "ChessBase"]
[SourceQuality "1"]
[TimeControl "1500+10"]

{[%evp 11,145,-26,13,29,20,30,55,29,47,35,99,98,105,113,139,139,146,146,354,116,125,136,144,119,167,68,80,48,137,137,137,156,147,137,137,137,148,128,142,83,84,91,89,89,97,75,75,75,87,84,86,62,73,43,66,35,48,28,28,23,11,10,14,14,14,8,26,26,38,6,15,18,10,8,6,0,0,0,0,0,0,0,0,0,0,0,0,0,8,8,30,0,0,0,30,0,18,27,43,48,122,122,71,41,58,60,15,41,38,8,59,63,77,0,0,0,0,0,0,0,181,181,244,181,314,190,537,509,29968,29964,8439,6856,706,706,29979,12667]} 1. e4 {[%emt 0:00:02]} c5 {[%emt 0:00:02]} 2. Nf3 {[%emt 0:00:01]} d6 {[%emt 0:00:02]} 3. d4 {[%emt 0:00:01]} cxd4 {[%emt 0:00:03]} 4. Nxd4 {[%emt 0:00:01]} Nf6 {[%emt 0:00:03]} 5. Nc3 {[%emt 0:00:02]} a6 {[%emt 0:00:03]} 6. Rg1 {[%emt 0:00:01]} g6 {[%emt 0:00:25]} 7. g4 {[%emt 0:00:02][%cal Bg2g4,Bg4g5][%mdl 32] B90: Sicilian Najdorf: Unusual White 6th moves, 6 Be3 Ng4 and 6 Be3 e5.} Bg7 {[%emt 0:00:06]} 8. g5 {[%emt 0:00:01]} Nfd7 {[%emt 0:00:09]} 9. Be3 {[%emt 0:00:01] White is slightly better.} Nc6 {[%emt 0:00:10] 9...Nc6 was played by the boomers.} 10. Qd2 {[%emt 0:00:18]} Nde5 {[%emt 0:00:16]} (10... Nc5 $14) 11. Be2 $1 $16 {[%emt 0:00:07]} ({Don't go for} 11. f4 $2 Nxd4 12. O-O-O Ndf3 $19) 11... Na5 {[%emt 0:00:22]} 12. b3 {[%emt 0:00:33] [#] Inhibits Nec4.} Nec6 $146 {[%emt 0:03:26]} ({Predecessor:} 12... Bd7 13. Nd5 O-O 14. O-O-O Rc8 15. f4 Nec6 16. Nxc6 Nxc6 17. Bb6 Qe8 18. f5 Be5 {1-0 (30) Moradiabadi,E (2439)-Ibrayev,N (2516) Moscow 2005}) 13. O-O-O {[%emt 0:00:23]} O-O {[%emt 0:03:29]} 14. h4 {[%emt 0:00:08]} Be6 $2 {[%emt 0:00:32]} (14... Bxd4 $16 15. Bxd4 Nxd4 16. Qxd4 Nc6) 15. h5 $2 {[%emt 0:00:54]} (15. Nxe6 $18 {and the rest is easy.} fxe6 16. Bg4) 15... Nxd4 {[%emt 0:00:32]} 16. Bxd4 {[%emt 0:00:02]} Bxd4 {[%emt 0:00:11]} 17. Qxd4 {[%emt 0:00:04]} Rc8 {[%emt 0:00:05]} (17... Nc6 $16 18. Qd2 Qa5) 18. Rh1 {[%emt 0:00:53]} ({White should play} 18. Nd5 $18) 18... Nc6 $14 {[%emt 0:00:12]} 19. Qe3 {[%emt 0:00:29] 0x0.001e3efdb379dp-1022s more active pieces.} Ne5 {[%emt 0:01:30]} ({Better is} 19... Qa5 $14) 20. f4 {[%emt 0:02:12]} Qa5 {[%emt 0:00:01]} 21. Kb2 {[%emt 0:00:38]} Ng4 {[%emt 0:00:23]} 22. Bxg4 {[%emt 0:00:15]} Bxg4 {[%emt 0:00:02]} 23. Rd5 {[%emt 0:00:12]} Qc7 {[%emt 0:00:20]} 24. Rd2 {[%emt 0:01:23]} Qc5 {[%emt 0:00:01]} 25. Qxc5 {[%emt 0:02:57]} (25. Qg3 $142 $1 e6 26. hxg6 fxg6 27. Rhh2 (27. Na4 Qb4 $14)) 25... Rxc5 $16 {[%emt 0:00:04]} 26. Nd5 {[%emt 0:00:03]} Re8 {[%emt 0:02:28]} 27. hxg6 {[%emt 0:00:02]} fxg6 {[%emt 0:00:06]} 28. Re1 {[%emt 0:00:56]} Be6 {[%emt 0:01:28]} 29. Nb4 {[%emt 0:00:46]} Rf8 {[%emt 0:02:00]} 30. Nd3 {[%emt 0:00:03]} Rcc8 {[%emt 0:00:09]} 31. Rh2 {[%emt 0:00:19][%cal Of4f5]} Rf7 {[%emt 0:00:23]} 32. Reh1 {[%emt 0:00:58]} Bg4 {[%emt 0:01:05]} 33. Rh4 {[%emt 0:03:01]} Be2 {[%emt 0:01:35]} 34. Nb4 {[%emt 0:00:21][%cal Of4f5]} e6 {[%emt 0:00:11] Inhibits f5.} 35. f5 {[%emt 0:00:50]} exf5 {[%emt 0:00:45]} 36. exf5 {[%emt 0:01:07]} Rxf5 {[%emt 0:00:27]} 37. Rxh7 {[%emt 0:00:29]} Bh5 {[%emt 0:00:02]} 38. Rd7 {[%emt 0:00:26]} a5 {[%emt 0:01:53]} 39. Nd3 {[%emt 0:00:08]} Rxg5 {[%emt 0:00:03]} 40. Nf4 {[%emt 0:00:47]} ({Wrong is} 40. Rxb7 $2 Bf3 41. Rbh7 Bxh1 42. Rxh1 Rg2 $19) 40... Rf5 {[%emt 0:00:10]} 41. Rh4 {[%emt 0:02:01]} b5 {[%emt 0:01:41]} 42. Rxd6 {[%emt 0:00:56]} Kf7 $1 {[%emt 0:00:02]} 43. Nd3 {[%emt 0:00:21]} (43. Ne6 {with more complications.} Rf6 44. Re4 Rf2 45. Nd4) 43... Re8 {[%emt 0:00:36]} 44. Ra6 {[%emt 0:01:34]} b4 {[%emt 0:00:22]} 45. a3 {[%emt 0:00:04]} bxa3+ {[%emt 0:00:24]} 46. Kxa3 {[%emt 0:00:01]} (46. Ka2 {looks sharper.} Re2 47. Ra7+ Kf6 48. Rc7) 46... Re6 {[%emt 0:00:39]} 47. Ra7+ {[%emt 0:00:08]} Kf6 {[%emt 0:00:01]} 48. c4 {[%emt 0:00:23]} Re3 {[%emt 0:00:14]} 49. Rd4 {[%emt 0:00:22]} Bd1 {[%emt 0:01:02]} 50. Ra6+ {[%emt 0:00:34]} Kg5 {[%emt 0:00:03]} 51. Rdd6 {[%emt 0:00:36]} (51. Nc5 $5 Rxc5 52. Rxd1 $14) 51... Kh4 {[%emt 0:00:01]} 52. Rd4+ {[%emt 0:00:36]} Kg5 {[%emt 0:00:12]} 53. Nc1 {[%emt 0:01:03]} (53. Nc5 $5 Rxc5 54. Rxd1 $14) 53... Re1 {[%emt 0:01:04]} 54. Rdd6 {[%emt 0:00:43] Nd3 is the strong threat.} Bh5 {[%emt 0:00:02]} 55. Nd3 {[%emt 0:00:06]} Re3 {[%emt 0:01:24] [#]} (55... Re2 $14) 56. Ka4 $1 {[%emt 0:01:28]} Kh4 {[%emt 0:00:08]} 57. Rxa5 {[%emt 0:00:19]} Rxa5+ {[%emt 0:00:10]} 58. Kxa5 {[%emt 0:00:01][%mdl 4096] Endgame KRB-KRN} g5 $1 {[%emt 0:00:05]} 59. c5 {[%emt 0:00:02]} Be2 {[%emt 0:00:12]} 60. Nc1 {[%emt 0:00:50]} Bf1 {[%emt 0:00:36]} (60... Bf3 $1 $11) 61. Rh6+ {[%emt 0:00:12]} Kg3 {[%emt 0:00:05] [#]} 62. c6 {[%emt 0:00:07]} ({White should try} 62. Kb4 $1 $16) 62... Rc3 $11 {[%emt 0:00:03]} 63. Na2 {[%emt 0:00:08]} Rxb3 {[%emt 0:00:11] White must now prevent ...Ra3+.} 64. Nb4 {[%emt 0:00:02] Threatens to win with c7.} Rc3 {[%emt 0:00:07]} 65. Kb6 {[%emt 0:00:17] Against Rc5. Hoping for c7.} Bh3 $2 {[%emt 0:00:33]} (65... Rc4 $1 $11 66. Nd5 Bg2) 66. c7 {[%emt 0:00:07][%cal Oh6h3] aiming for Rxh3+!} Bc8 {[%emt 0:00:04]} (66... Bg4 $142 67. Nd5 Rd3) 67. Rh8 {[%emt 0:00:04]} Be6 {[%emt 0:00:02]} (67... Bg4 {is a better defense.} 68. Rg8 Kh4) 68. Re8 {[%emt 0:00:17]} Bf5 $2 {[%emt 0:00:03]} (68... Bg4 {is a better chance.} 69. Rg8 (69. Nd5 Rc1 $18) 69... Kh4 70. Rh8+ Kg3) 69. Re5 $18 {[%emt 0:00:06]} Kg4 {[%emt 0:00:17]} (69... Rxc7 $18 70. Kxc7 Kf4) 70. Nd5 {[%emt 0:00:09]} Rb3+ {[%emt 0:00:03]} 71. Kc5 {[%emt 0:00:01][%cal Oe5f5] White wants to mate with Rxf5!} Bc8 {[%emt 0:00:04]} 72. Re8 {[%emt 0:00:05]} Bd7 {[%emt 0:00:08]} 73. Nf6+ {[%emt 0:00:01] Weighted Error Value: White=0.14 (very precise) /Black=0.16 (very precise)} 1-0

[Event "Chinese League Div-A Rapid 2022"]
[Site "Fuling,Chongqing"]
[Date "2022.09.08"]
[Round "3.19"]
[White "Shao, Qiyu"]
[Black "Liu, Manli"]
[Result "0-1"]
[ECO "E14"]
[WhiteElo "1467"]
[BlackElo "2195"]
[Annotator "NA RC"]
[PlyCount "104"]
[EventDate "2022.09.07"]
[EventType "team-tourn"]
[EventCountry "CHN"]
[SourceTitle "playchess.com"]
[Source "ChessBase"]
[SourceQuality "1"]
[TimeControl "1500+10"]

1. c4 {[%emt 0:00:02]} e6 {[%emt 0:00:04]} 2. Nf3 {[%emt 0:00:04]} d5 {[%emt 0:00:04]} 3. e3 {[%emt 0:00:02]} Nf6 {[%emt 0:00:08]} 4. Nc3 {[%emt 0:00:12]} Be7 {[%emt 0:00:16]} 5. b3 {[%emt 0:00:07]} O-O {[%emt 0:00:36]} 6. Bb2 {[%emt 0:00:02]} b6 {[%emt 0:00:50]} 7. Be2 {[%emt 0:02:16]} Bb7 {[%emt 0:00:30]} 8. Rc1 {[%emt 0:00:11]} Nbd7 {[%emt 0:01:07]} 9. O-O {[%emt 0:00:33]} c5 {[%emt 0:00:50]} 10. cxd5 {[%emt 0:00:13]} Nxd5 {[%emt 0:01:51]} 11. Nxd5 {[%emt 0:01:14]} Bxd5 {[%emt 0:00:12]} 12. d4 {[%emt 0:00:37]} Rc8 {[%emt 0:00:35]} 13. Bc4 {[%emt 0:00:31]} Bb7 {[%emt 0:01:31]} 14. Qe2 {[%emt 0:00:47]} Bd6 {[%emt 0:03:30]} 15. e4 {[%emt 0:03:17]} cxd4 {[%emt 0:00:57]} 16. Nxd4 {[%emt 0:00:53]} Qh4 {[%emt 0:01:53]} 17. Nf3 {[%emt 0:02:04]} Qe7 {[%emt 0:01:46]} 18. Rfd1 {[%emt 0:03:20]} Rfd8 {[%emt 0:00:38]} 19. h3 {[%emt 0:01:49]} Bb8 {[%emt 0:01:09]} 20. Ba6 {[%emt 0:03:31]} Rxc1 {[%emt 0:00:52]} 21. Rxc1 {[%emt 0:01:14]} Ba8 {[%emt 0:00:27]} 22. Bb5 {[%emt 0:01:24]} h6 {[%emt 0:00:24]} 23. Bxd7 {[%emt 0:01:04]} Qxd7 {[%emt 0:00:36]} 24. Qc2 {[%emt 0:02:29]} Bb7 {[%emt 0:00:41]} 25. Qc3 {[%emt 0:00:11]} f6 {[%emt 0:00:02]} 26. Qc2 {[%emt 0:00:35]} Rc8 {[%emt 0:00:40]} 27. Qd2 {[%emt 0:00:06]} Rd8 {[%emt 0:01:31]} 28. Qc2 {[%emt 0:00:11]} Kf7 {[%emt 0:00:53]} 29. Qe2 {[%emt 0:00:11]} Qd3 {[%emt 0:01:09]} 30. Qxd3 {[%emt 0:00:14]} Rxd3 {[%emt 0:00:02]} 31. Re1 {[%emt 0:00:10]} g5 {[%emt 0:00:31]} 32. Nh2 {[%emt 0:00:30]} Rd2 {[%emt 0:00:14]} 33. Bc3 {[%emt 0:00:13]} Rc2 {[%emt 0:00:09]} 34. Bb4 {[%emt 0:00:04]} a5 {[%emt 0:00:08]} 35. Rd1 {[%emt 0:00:17]} Bc6 {[%emt 0:00:49]} 36. Bd6 {[%emt 0:00:17]} Bxd6 {[%emt 0:00:08]} 37. Rxd6 {[%emt 0:00:01]} Rc1+ {[%emt 0:00:01]} 38. Nf1 {[%emt 0:00:02]} Ke7 {[%emt 0:00:09]} 39. Rd4 {[%emt 0:00:07]} Bb5 {[%emt 0:00:03]} 40. Kh2 {[%emt 0:00:06]} Rxf1 {[%emt 0:00:10]} 41. Rd2 {[%emt 0:00:13]} Re1 {[%emt 0:00:09]} 42. f3 {[%emt 0:00:08]} Re2 {[%emt 0:00:03]} 43. Rd1 {[%emt 0:00:25]} Rxa2 {[%emt 0:00:07]} 44. Rb1 {[%emt 0:00:02]} f5 {[%emt 0:00:17]} 45. exf5 {[%emt 0:00:11]} exf5 {[%emt 0:00:02]} 46. h4 {[%emt 0:00:27]} gxh4 {[%emt 0:00:04]} 47. Kh3 {[%emt 0:00:02]} Kf6 {[%emt 0:00:12]} 48. Rd1 {[%emt 0:00:03]} Kg5 {[%emt 0:00:03]} 49. Rd4 {[%emt 0:00:09]} Bf1 {[%emt 0:00:06]} 50. f4+ {[%emt 0:00:12]} Kh5 {[%emt 0:00:09]} 51. Rd6 {[%emt 0:00:18]} Rxg2 {[%emt 0:00:07]} 52. Rd1 {[%emt 0:00:14]} Rf2+ {[%emt 0:00:03]} 0-1

[Event "Chinese League Div-A Rapid 2022"]
[Site "Fuling,Chongqing"]
[Date "2022.09.08"]
[Round "3.20"]
[White "Sun, Fanghui"]
[Black "Hu, Yu A."]
[Result "0-1"]
[ECO "B51"]
[WhiteElo "2182"]
[BlackElo "2074"]
[Annotator "NA RC"]
[PlyCount "124"]
[EventDate "2022.09.07"]
[EventType "team-tourn"]
[EventCountry "CHN"]
[SourceTitle "playchess.com"]
[Source "ChessBase"]
[SourceQuality "1"]
[TimeControl "1500+10"]

1. e4 {[%emt 0:00:03]} c5 {[%emt 0:00:02]} 2. Nf3 {[%emt 0:00:02]} Nc6 {[%emt 0:00:02]} 3. Bb5 {[%emt 0:00:08]} d6 {[%emt 0:00:02]} 4. O-O {[%emt 0:00:07]} Bd7 {[%emt 0:00:02]} 5. Re1 {[%emt 0:00:03]} Nf6 {[%emt 0:00:04]} 6. c3 {[%emt 0:00:07]} a6 {[%emt 0:00:02]} 7. Bf1 {[%emt 0:00:02]} Bg4 {[%emt 0:00:18]} 8. h3 {[%emt 0:00:53]} Bxf3 {[%emt 0:00:04]} 9. Qxf3 {[%emt 0:00:03]} e6 {[%emt 0:00:26]} 10. Na3 {[%emt 0:02:20]} Be7 {[%emt 0:00:14]} 11. Nc2 {[%emt 0:00:40]} O-O {[%emt 0:02:04]} 12. d4 {[%emt 0:00:20]} cxd4 {[%emt 0:00:50]} 13. cxd4 {[%emt 0:00:14]} Rc8 {[%emt 0:00:03]} 14. b3 {[%emt 0:01:36]} d5 {[%emt 0:00:45]} 15. e5 {[%emt 0:02:12]} Ne4 {[%emt 0:00:03]} 16. Bd3 {[%emt 0:01:18]} Nb4 {[%emt 0:00:31]} 17. Nxb4 {[%emt 0:02:12]} Bxb4 {[%emt 0:00:02]} 18. Rd1 {[%emt 0:00:57]} Bc3 {[%emt 0:05:02]} 19. Rb1 {[%emt 0:00:04]} Bxd4 {[%emt 0:00:27]} 20. Ba3 {[%emt 0:03:57]} Bxf2+ {[%emt 0:03:42]} 21. Kh1 {[%emt 0:03:09]} Bc5 {[%emt 0:00:33]} 22. Bxe4 {[%emt 0:00:31]} Bxa3 {[%emt 0:00:03]} 23. Bxd5 {[%emt 0:02:02]} exd5 {[%emt 0:00:16]} 24. b4 {[%emt 0:00:02]} Qe7 {[%emt 0:06:04]} 25. Qxa3 {[%emt 0:00:23]} Qxe5 {[%emt 0:00:02]} 26. b5 {[%emt 0:00:42]} Rc3 {[%emt 0:00:49]} 27. Qb2 {[%emt 0:00:21]} d4 {[%emt 0:00:30]} 28. bxa6 {[%emt 0:00:19]} bxa6 {[%emt 0:00:02]} 29. Qb6 {[%emt 0:00:13]} Ra3 {[%emt 0:01:10]} 30. Rxd4 {[%emt 0:00:08]} Rxa2 {[%emt 0:00:23]} 31. Rd8 {[%emt 0:00:05]} g6 {[%emt 0:00:35]} 32. Rd4 {[%emt 0:01:56]} h5 {[%emt 0:01:50]} 33. Rf1 {[%emt 0:00:56]} Qg3 {[%emt 0:00:51]} 34. Qc6 {[%emt 0:00:40]} Rf2 {[%emt 0:00:33]} 35. Rfd1 {[%emt 0:00:13]} Rb8 {[%emt 0:00:25]} 36. R4d3 {[%emt 0:00:20]} Qg5 {[%emt 0:00:26]} 37. Rg1 {[%emt 0:00:51]} Kh7 {[%emt 0:00:52]} 38. Qc7 {[%emt 0:00:48]} Rb1 {[%emt 0:00:11]} 39. Rg3 {[%emt 0:00:18]} Rxg1+ {[%emt 0:00:09]} 40. Kxg1 {[%emt 0:00:01]} Qf6 {[%emt 0:00:20]} 41. Qc4 {[%emt 0:00:19]} Rf4 {[%emt 0:00:15]} 42. Qd3 {[%emt 0:00:15]} a5 {[%emt 0:00:06]} 43. Re3 {[%emt 0:00:13]} h4 {[%emt 0:00:26]} 44. Kh2 {[%emt 0:00:16]} a4 {[%emt 0:00:12]} 45. Re1 {[%emt 0:00:05]} Rf2 {[%emt 0:00:07]} 46. Re4 {[%emt 0:00:08]} Qg5 {[%emt 0:00:17]} 47. Rg4 {[%emt 0:00:12]} Qe5+ {[%emt 0:00:01]} 48. Kg1 {[%emt 0:00:03]} Qe1+ {[%emt 0:00:02]} 49. Kh2 {[%emt 0:00:01]} Qe5+ {[%emt 0:00:17]} 50. Kg1 {[%emt 0:00:01]} Rf4 {[%emt 0:00:04]} 51. Rxf4 {[%emt 0:00:20]} Qxf4 {[%emt 0:00:02]} 52. Qa3 {[%emt 0:00:17]} Kg7 {[%emt 0:00:20]} 53. Qc3+ {[%emt 0:00:09]} Qf6 {[%emt 0:00:01]} 54. Qa3 {[%emt 0:00:03]} Qb6+ {[%emt 0:00:03]} 55. Kh2 {[%emt 0:00:04]} Qb3 {[%emt 0:00:05]} 56. Qa1+ {[%emt 0:00:02]} f6 {[%emt 0:00:08]} 57. Qc1 {[%emt 0:00:16]} a3 {[%emt 0:00:04]} 58. Qc7+ {[%emt 0:00:04]} Qf7 {[%emt 0:00:01]} 59. Qa5 {[%emt 0:00:16]} a2 {[%emt 0:00:01]} 60. Qc3 {[%emt 0:00:05]} Qe6 {[%emt 0:00:08]} 61. Qc7+ {[%emt 0:00:12]} Kh6 {[%emt 0:00:06]} 62. Qf4+ {[%emt 0:00:10]} g5 {[%emt 0:00:01]} 0-1

[Event "Chinese League Div-A Rapid 2022"]
[Site "Fuling,Chongqing"]
[Date "2022.09.08"]
[Round "3.21"]
[White "Xiao, Tong"]
[Black "Liu, Yan"]
[Result "1-0"]
[ECO "B90"]
[WhiteElo "2027"]
[BlackElo "2530"]
[Annotator "TA"]
[PlyCount "95"]
[EventDate "2022.09.07"]
[EventType "team-tourn"]
[EventCountry "CHN"]
[SourceTitle "playchess.com"]
[Source "ChessBase"]
[SourceQuality "1"]
[TimeControl "1500+10"]

{[%evp 15,95,19,37,18,21,6,12,0,8,0,0,0,0,0,20,0,0,0,0,0,0,0,0,0,0,0,0,0,0,0,0,0,0,0,0,0,0,0,0,0,0,0,0,0,0,-11,0,0,0,0,0,0,20,0,24,22,32,41,32,64,283,273,258,248,280,104,332,259,456,450,449,448,559,547,961,937,5852,5963,29983,29983,29982,29982]} 1. e4 {[%emt 0:00:02]} c5 {[%emt 0:00:01]} 2. Nf3 {[%emt 0:00:02]} d6 {[%emt 0:00:02]} 3. d4 {[%emt 0:00:01]} cxd4 {[%emt 0:00:04]} 4. Nxd4 {[%emt 0:00:02]} Nf6 {[%emt 0:00:03]} 5. f3 {[%emt 0:00:05]} e5 {[%emt 0:00:04]} 6. Nb3 {[%emt 0:00:04]} Be6 {[%emt 0:00:03]} 7. Nc3 {[%emt 0:00:33]} a6 {[%emt 0:00:53]} 8. Be3 {[%emt 0:00:14]} h5 {[%emt 0:00:25]} 9. Be2 {[%emt 0:00:52] B90: Sicilian Najdorf: Unusual White 6th moves, 6 Be3 Ng4 and 6 Be3 e5.} Nbd7 {[%emt 0:00:13]} 10. a4 {[%emt 0:00:13]} Rc8 {[%emt 0:00:43]} 11. Qd2 {[%emt 0:00:50] The position is equal.} Be7 {[%emt 0:00:22]} 12. O-O {[%emt 0:00:11]} Nb6 {[%emt 0:02:32]} 13. a5 {[%emt 0:01:15]} Nc4 {[%emt 0:00:04]} 14. Bxc4 {[%emt 0:00:02]} Rxc4 {[%emt 0:00:09]} 15. Nd5 {[%emt 0:01:48]} Nxd5 {[%emt 0:01:26]} 16. exd5 {[%emt 0:00:03]} Bf5 {[%emt 0:00:02]} 17. c3 {[%emt 0:00:08]} Qd7 {[%emt 0:01:27] [#]} 18. Qe2 $146 {[%emt 0:00:13]} ({Predecessor:} 18. Nc1 Ra4 19. Rxa4 Qxa4 20. Bb6 Qc2 21. Qxc2 Bxc2 22. Rf2 Bh7 23. Nb3 g5 24. c4 {0-1 (36) Del Castilho,M (2205)-Dominguez Perez,L (2716) Santiago de los Caballeros 2011}) 18... Qb5 {[%emt 0:04:38]} 19. Nd2 {[%emt 0:00:04]} Rc8 {[%emt 0:00:05]} 20. Qxb5+ {[%emt 0:01:13]} axb5 {[%emt 0:00:02]} 21. a6 {[%emt 0:02:04]} bxa6 {[%emt 0:00:03]} 22. Rxa6 {[%emt 0:00:02]} Bd3 {[%emt 0:01:48]} 23. Rfa1 {[%emt 0:00:15]} O-O {[%emt 0:00:49]} 24. Ra7 {[%emt 0:00:51]} Rfe8 {[%emt 0:00:05]} 25. Rb7 {[%emt 0:00:24]} Bf8 {[%emt 0:00:19]} 26. Raa7 {[%emt 0:01:10]} f5 {[%emt 0:01:11]} 27. g3 {[%emt 0:00:16]} Rb8 {[%emt 0:02:16]} 28. Rc7 {[%emt 0:02:04]} Rec8 {[%emt 0:00:34]} 29. Rxc8 {[%emt 0:00:15]} Rxc8 {[%emt 0:00:01]} 30. Kg2 {[%emt 0:00:14]} h4 {[%emt 0:01:38]} 31. f4 {[%emt 0:00:07]} hxg3 {[%emt 0:01:09]} 32. hxg3 {[%emt 0:00:01]} b4 {[%emt 0:01:34]} 33. cxb4 {[%emt 0:00:29]} Rb8 {[%emt 0:00:02]} 34. b3 {[%emt 0:01:30]} Rb5 {[%emt 0:01:42]} 35. fxe5 {[%emt 0:00:57]} dxe5 {[%emt 0:00:03]} 36. d6 {[%emt 0:00:08] [#] Threatens to win with d7.} Rd5 {[%emt 0:01:02]} 37. Bc5 {[%emt 0:00:13] Hoping for Nc4.} Bb5 {[%emt 0:01:08]} (37... Bxd6 $2 38. Rd7 $18) ({Black should try} 37... Bc2 $14 38. Nf3 Be4) 38. Nc4 $18 {[%emt 0:00:03]} g5 {[%emt 0:01:09]} 39. Kf2 {[%emt 0:00:12]} f4 {[%emt 0:00:16]} 40. Ra8 $2 {[%emt 0:00:31] [#]} (40. Rb7 $18 Be8 41. gxf4 exf4 42. Nb6 Rxd6 43. Bxd6 Bxd6 44. Nc4) 40... Kg7 $2 {[%emt 0:00:23]} (40... Kf7 $16) 41. Rb8 {[%emt 0:00:07]} Bc6 {[%emt 0:00:41]} (41... fxg3+ {is a better defense.} 42. Kg2 Bxc4) 42. Rb6 {[%emt 0:00:17]} ({Not} 42. b5 Rxc5 43. bxc6 Rxc6 $18) 42... fxg3+ {[%emt 0:00:27]} 43. Kxg3 {[%emt 0:00:09]} Rd3+ {[%emt 0:00:03]} 44. Kf2 {[%emt 0:00:07]} Be4 {[%emt 0:00:31]} 45. Nxe5 {[%emt 0:00:03]} Rd5 {[%emt 0:00:01]} 46. d7 {[%emt 0:00:50]} Bf5 {[%emt 0:00:05]} 47. Bxf8+ {[%emt 0:00:04]} Kxf8 {[%emt 0:00:01]} 48. Rf6+ {[%emt 0:00:06] Weighted Error Value: White=0.08 (flawless) /Black=0.50} 1-0

[Event "Chinese League Div-A Rapid 2022"]
[Site "Fuling,Chongqing"]
[Date "2022.09.08"]
[Round "3.22"]
[White "Zou, Chen"]
[Black "Bu, Xiangzhi"]
[Result "0-1"]
[ECO "A07"]
[WhiteElo "2432"]
[BlackElo "2709"]
[Annotator "TA"]
[PlyCount "98"]
[EventDate "2022.09.07"]
[EventType "team-tourn"]
[EventCountry "CHN"]
[SourceTitle "playchess.com"]
[Source "ChessBase"]
[SourceQuality "1"]
[TimeControl "1500+10"]

{[%evp 20,98,16,0,8,9,16,0,9,7,14,-10,6,4,15,-7,0,-1,-1,-12,0,-12,0,-41,-47,-47,0,-38,-33,-261,-227,-236,-184,-177,-91,-89,-41,-76,-72,-103,-76,-129,-139,-256,-245,-244,-235,-238,-150,-143,-143,-268,-274,-321,-291,-427,-414,-425,-419,-429,-414,-482,-454,-414,-216,-207,-204,-283,-295,-395,-390,-380,-383,-381,-374,-29972,-29973,-29973,-29974,-29974,-29967]} 1. Nf3 {[%emt 0:00:03]} d5 {[%emt 0:00:13]} 2. b3 {[%emt 0:00:04]} Bf5 {[%emt 0:02:33]} 3. Bb2 {[%emt 0:00:06]} e6 {[%emt 0:00:02]} 4. g3 {[%emt 0:00:24]} Nf6 {[%emt 0:00:07]} 5. Bg2 {[%emt 0:00:02]} Be7 {[%emt 0:00:23]} 6. O-O {[%emt 0:00:10]} O-O {[%emt 0:00:03]} 7. d3 {[%emt 0:00:10]} h6 {[%emt 0:00:04]} 8. Nbd2 {[%emt 0:00:04]} Bh7 {[%emt 0:00:29]} 9. Re1 {[%emt 0:00:34]} c6 {[%emt 0:00:26]} 10. e4 {[%emt 0:00:07]} a5 {[%emt 0:00:06]} 11. a3 {[%emt 0:00:10]} Na6 {[%emt 0:00:17] 11...Nbd7 is the fancy move. A07: Réti Opening: New York and Capablanca Systems.} 12. Qe2 {[%emt 0:01:15]} Re8 {[%emt 0:00:15]} 13. Rad1 {[%emt 0:00:37]} Rc8 {[%emt 0:01:58] The position is equal.} 14. Ne5 {[%emt 0:00:46]} Nc5 {[%emt 0:00:19] [#]} 15. Kh1 $146 {[%emt 0:00:37]} ({Predecessor:} 15. f4 Qb6 16. Kh1 Rcd8 17. exd5 cxd5 18. Ndf3 Ncd7 19. a4 Bc5 20. Bh3 Nxe5 21. fxe5 {1-0 (34) Iljushin,A (2549)-Reshetnikov,A (2388) Moscow 2008}) 15... Nfd7 {[%emt 0:00:38]} 16. Ng4 {[%emt 0:01:48]} Nf6 {[%emt 0:01:26]} 17. Ne5 {[%emt 0:00:36]} Ncd7 {[%emt 0:00:14]} 18. Nxd7 {[%emt 0:00:31]} Nxd7 {[%emt 0:00:04]} (18... Qxd7 $2 19. e5 $18) 19. f4 {[%emt 0:00:11]} Bf6 {[%emt 0:00:24]} 20. e5 {[%emt 0:03:59]} Be7 {[%emt 0:00:01]} 21. Nf3 {[%emt 0:01:05]} b5 {[%emt 0:00:02]} 22. g4 {[%emt 0:00:22]} a4 {[%emt 0:00:19]} (22... c5 $15) 23. b4 {[%emt 0:01:38]} c5 {[%emt 0:00:38]} 24. c4 $2 {[%emt 0:04:35]} ({Better is} 24. bxc5 $15 Bxc5 25. c3) 24... dxc4 $19 {[%emt 0:05:46]} (24... cxb4 $2 25. cxd5 bxa3 26. Ba1 $17) 25. dxc4 {[%emt 0:00:15]} bxc4 {[%emt 0:00:35]} 26. Qxc4 {[%emt 0:00:58]} Qc7 {[%emt 0:00:49]} (26... cxb4 $19 27. Qb5 Rc7) 27. Qb5 {[%emt 0:04:00]} Nb6 {[%emt 0:00:21]} (27... Nf8 $17 {And now ...cxb4 would win.} 28. bxc5 (28. Qxa4 cxb4 29. Rc1 Bc2 $17) 28... Qxc5) 28. f5 {[%emt 0:02:56]} cxb4 {[%emt 0:01:14]} (28... exf5 29. e6 f6 30. Ne5 fxe5 31. Bxe5 $16) 29. axb4 {[%emt 0:00:31]} Nc4 {[%emt 0:00:49]} ({Reject} 29... exf5 $6 30. Rc1 (30. e6 f6 $16) 30... Qd8 31. Rcd1 $11) 30. fxe6 {[%emt 0:00:46]} fxe6 $17 {[%emt 0:00:08]} ({Don't take} 30... Nxb2 31. exf7+ Kxf7 32. Rd7 Qxd7 33. Qxd7 $18) 31. Rd7 {[%emt 0:00:15] [#]} (31. Rc1 $17 Qb6 32. Qxb6 Nxb6 33. Bd4) 31... Qb6 $1 $19 {[%emt 0:00:04]} 32. Qxb6 {[%emt 0:00:08]} Nxb6 {[%emt 0:00:01]} 33. Rb7 {[%emt 0:00:07]} Rb8 {[%emt 0:00:15]} 34. Rxb8 {[%emt 0:00:20]} Rxb8 {[%emt 0:00:25]} 35. b5 {[%emt 0:00:20]} (35. Nd4 $17) 35... Nc4 {[%emt 0:00:42][%csl LRb2,LRb5]} 36. Ba1 {[%emt 0:00:13]} Rxb5 {[%emt 0:00:24]} 37. Nd4 {[%emt 0:00:10]} (37. Bf1 $142 Rc5 38. Bd4) 37... Rxe5 {[%emt 0:00:07]} 38. Rxe5 {[%emt 0:00:04]} Nxe5 {[%emt 0:00:01][%cal Bc4e5,Be5g4,Bg4e3][%mdl 32]} 39. Nxe6 {[%emt 0:00:09]} Nxg4 {[%emt 0:07:04]} 40. Bd5 {[%emt 0:00:09]} Ne3 {[%emt 0:00:21]} 41. Ba2 {[%emt 0:00:13]} Bc2 {[%emt 0:00:46]} (41... Be4+ $142 42. Kg1 Bd5 43. Bxd5 Nxd5 44. Nxg7 Ne3) 42. Nd4+ {[%emt 0:00:28]} Kf8 {[%emt 0:00:40] Hoping for ...Bf6.} 43. Ne6+ {[%emt 0:00:10] [#]} Ke8 $1 {[%emt 0:00:20]} 44. Bxg7 {[%emt 0:00:11]} Bb3 {[%emt 0:00:22]} 45. Bxb3 {[%emt 0:00:10]} axb3 {[%emt 0:00:01]} 46. Nf4 {[%emt 0:00:10]} Kf7 {[%emt 0:00:10]} 47. Bd4 {[%emt 0:00:07] [#]} (47. Bb2 $19) 47... Bf6 $1 {[%emt 0:00:12] Black mates.} 48. Bxf6 {[%emt 0:00:03]} Kxf6 {[%emt 0:00:01]} 49. Nd3 {[%emt 0:00:02]} Nc4 {[%emt 0:00:07] Weighted Error Value: White=0.56/Black=0.19 (very precise)} 0-1